bitfinex-derivatives/quotes_SOLF0:USTF0_20260215
["timestamp","ask_amount","ask_price","bid_price","bid_amount"]
[1771160876956,8.0668856,88.059,88.012,10.2314]
[1771160877159,8.0668856,88.058,88.012,10.2314]
[1771160877359,8.0668856,88.057,88.012,10.2314]
[1771160877560,8.0668856,88.056,88.012,10.2314]
[1771160877757,8.0668856,88.055,87.948,20.4777]
[1771160877958,20.27604189,88.081,87.948,20.4777]
[1771160877959,10.24812457,88.051,87.948,20.4777]
[1771160878159,8.0668856,88.05,87.948,20.4777]
[1771160878463,8.0668856,88.049,87.996,10.2332]
[1771160878763,8.0668856,88.054,87.94,34.1]
[1771160878964,8.0668856,88.053,87.94,34.1]
[1771160879165,8.0668856,88.061,87.94,34.1]
[1771160879364,8.0668856,88.06,88.004,10.2323]
[1771160879564,8.0668856,88.059,88.004,10.2323]
[1771160879763,8.0668856,88.058,87.957,20.4757]
[1771160880064,8.0668856,88.057,87.957,20.4757]
[1771160880260,8.0668856,88.056,87.986,10.2344]
[1771160880457,8.0668856,88.055,87.957,20.4757]
[1771160880658,8.0668856,88.054,87.959,20.4752]
[1771160880856,8.0668856,88.053,87.989,10.234]
[1771160881060,8.0668856,88.052,87.989,10.234]
[1771160881255,8.0668856,88.051,87.989,10.234]
[1771160881461,8.0668856,88.05,87.977,10.2355]
[1771160881766,10.24812457,88.044,87.936,20.4806]
[1771160881966,10.24812457,88.04,87.936,20.4806]
[1771160882165,8.0668856,88.039,87.936,20.4806]
[1771160882366,8.0668856,88.038,87.936,20.4806]
[1771160882568,8.0668856,88.037,87.936,20.4806]
[1771160882770,8.0668856,88.036,87.974,10.2358]
[1771160883065,8.0668856,88.036,87.908,159.3439]
[1771160883066,10.24812457,88.032,87.9,20.9061883]
[1771160883262,10.24812457,88.024,87.896,267.4455]
[1771160883469,8.0668856,88.023,87.91,159.3411]
[1771160883670,8.0668856,88.028,87.91,159.3411]
[1771160883869,8.0668856,88.027,87.91,159.3411]
[1771160884071,8.0668856,88.026,87.91,159.3411]
[1771160884267,8.56e-05,88.025,87.921,159.3206]
[1771160884467,10.24812457,88.056,87.943,20.4789]
[1771160884659,10.24812457,88.059,87.987,10.2343]
[1771160884861,10.24812457,88.048,87.945,108.54]
[1771160885061,10.24812457,88.051,87.945,108.54]
[1771160885268,10.24812457,88.053,87.943,20.4789]
[1771160885570,198.38,88.058,87.943,20.4789]
[1771160885769,10.24812457,88.038,87.915,20.4854]
[1771160885971,10.24812457,88.029,87.956,10.2379]
[1771160886172,3.33036531,88.028,87.912,90.68]
[1771160886473,3.43866273,88.026,87.913,10.64552466]
[1771160886669,3.43866273,88.024,87.947,10.64552466]
[1771160886871,3.43807779,88.022,87.947,10.64552466]
[1771160887066,3.43056709,88.02,87.947,10.64552466]
[1771160887271,3.43056709,88.018,87.947,10.64552466]
[1771160887569,3.43056709,88.016,87.948,10.2388]
[1771160887771,3.33036531,88.015,87.949,10.64552466]
[1771160888073,3.33036531,88.029,87.949,10.64552466]
[1771160888274,3.33036531,88.028,87.978,10.64552466]
[1771160888474,3.33036531,88.027,87.978,10.64552466]
[1771160888673,3.33036531,88.026,87.978,10.64552466]
[1771160888875,13.64089719,88.065,87.934,95.46]
[1771160888876,3.42234476,88.024,87.935,10.64552466]
[1771160889076,3.41500561,88.022,87.935,10.64552466]
[1771160889376,3.41500561,88.02,87.935,10.64552466]
[1771160889574,3.41500561,88.018,87.935,10.64552466]
[1771160889776,3.41500561,88.016,87.935,10.64552466]
[1771160889976,3.3900476,88.014,87.965,10.64552466]
[1771160890171,3.33036531,88.013,87.965,10.64552466]
[1771160890376,3.33036531,88.012,87.965,10.64552466]
[1771160890675,3.33036531,88.011,87.965,10.64552466]
[1771160890876,6.71985971,88.01,87.965,10.64552466]
[1771160891075,3.33036531,88.009,87.965,10.64552466]
[1771160891371,3.33036531,88.008,87.965,10.64552466]
[1771160891680,3.33036531,88.007,87.965,10.64552466]
[1771160891871,3.33036531,88.006,87.965,10.64552466]
[1771160892177,3.3894944,88.01,87.965,10.64552466]
[1771160892376,3.30625152,88.009,87.965,10.64552466]
[1771160892674,3.30625152,88.008,87.965,10.64552466]
[1771160892871,3.30625152,88.007,87.97,20.88182466]
[1771160893072,3.3074379,88.037,87.971,10.64552466]
[1771160893276,3.3074379,88.036,87.971,10.64552466]
[1771160893475,3.31903044,88.034,87.971,10.64552466]
[1771160893675,3.3074379,88.033,87.971,10.64552466]
[1771160893878,3.3074379,88.032,87.977,10.59691237]
[1771160894181,3.3074379,88.031,87.977,10.59691237]
[1771160894379,3.3074379,88.03,87.978,10.2353]
[1771160894679,3.3074379,88.029,87.979,10.59691237]
[1771160894874,3.3074379,88.028,87.98,10.2352]
[1771160895179,3.29386381,88.026,87.981,10.59691237]
[1771160895379,3.29386381,88.024,87.951,10.59691237]
[1771160895575,3.29386381,88.022,87.936,10.59691237]
[1771160895779,3.29386381,88.02,87.936,10.59691237]
[1771160895983,3.2813367,88.018,87.952,10.2383]
[1771160896177,3.2813367,88.016,87.952,10.2383]
[1771160896380,3.2813367,88.014,87.952,10.2383]
[1771160896674,3.2813367,88.012,87.952,10.2383]
[1771160896874,3.28083701,88.01,87.952,10.2383]
[1771160897075,3.27422856,88.008,87.952,10.2383]
[1771160897276,3.27422856,88.006,87.943,10.59691237]
[1771160897471,3.27422856,88.004,87.943,10.59691237]
[1771160897678,3.3074379,88.003,87.943,10.59691237]
[1771160897874,3.3074379,88.002,87.943,10.59691237]
[1771160898078,6.55614103,88.001,87.963,10.2371]
[1771160898283,3.3074379,88.0,87.963,10.2371]
[1771160898484,3.3074379,87.999,87.948,10.2388]
[1771160898781,3.3074379,87.998,87.948,10.2388]
[1771160898983,3.3074379,87.997,87.948,10.2388]
[1771160899286,3.3074379,87.996,87.948,10.2388]
[1771160899485,3.3074379,87.995,87.948,10.2388]
[1771160899690,3.3074379,88.0,87.957,10.2378]
[1771160899878,3.3074379,87.999,87.943,10.59691237]
[1771160900074,3.24870313,88.001,87.943,10.59691237]
[1771160900075,3.30696807,87.998,87.944,10.2393]
[1771160900383,3.30696807,87.997,87.943,10.59691237]
[1771160900683,3.30696807,87.996,87.943,10.59691237]
[1771160900873,3.30696807,88.0,87.943,10.59691237]
[1771160901074,10.23316409,88.031,87.943,10.59691237]
[1771160901075,3.30696807,87.999,87.96,10.2375]
[1771160901276,3.30696807,87.998,87.96,10.2375]
[1771160901475,3.30696807,87.997,87.96,10.2375]
[1771160901688,3.30696807,87.996,87.96,10.2375]
[1771160901985,3.30696807,87.996,87.908,20.4869]
[1771160901986,3.30696807,88.005,87.968,10.59691237]
[1771160902181,3.30229061,88.025,87.968,10.59691237]
[1771160902182,3.30696807,88.024,87.968,10.59691237]
[1771160902383,3.30696807,88.023,87.968,10.59691237]
[1771160902581,3.30229061,88.021,87.968,10.59691237]
[1771160902885,10.23316409,88.049,87.908,54.5869]
[1771160902886,3.30180728,88.019,87.952,10.59691237]
[1771160903083,3.29564138,88.017,87.952,10.59691237]
[1771160903389,3.29564138,88.015,87.952,10.59691237]
[1771160903580,3.30696807,88.014,87.952,10.59691237]
[1771160903780,3.30696807,88.013,87.954,10.59691237]
[1771160903977,3.29776976,88.011,87.954,10.59691237]
[1771160904283,3.29776976,88.009,87.955,10.238]
[1771160904587,3.30696807,88.008,87.956,10.59691237]
[1771160904783,3.30696807,88.007,87.956,10.59691237]
[1771160905088,3.30696807,88.006,87.956,10.59691237]
[1771160905382,3.30696807,88.005,87.956,10.59691237]
[1771160905583,3.29127006,88.003,87.956,10.59691237]
[1771160905788,3.29127006,88.003,87.946,10.239]
[1771160905789,3.44607322,88.001,87.946,10.239]
[1771160905990,3.44011735,87.999,87.947,10.59691237]
[1771160906288,3.30696807,87.998,87.948,10.2388]
[1771160906585,3.30696807,87.997,87.949,10.59691237]
[1771160906789,3.30696807,87.996,87.949,10.59691237]
[1771160906984,3.30696807,87.995,87.949,10.59691237]
[1771160907189,3.30696807,87.994,87.949,10.59691237]
[1771160907385,3.30696807,87.993,87.949,10.59691237]
[1771160907585,6.74069349,88.009,87.949,10.59691237]
[1771160907892,3.30696807,88.008,87.949,10.59691237]
[1771160908192,3.30696807,88.007,87.949,10.59691237]
[1771160908389,3.43876642,88.005,87.949,10.59691237]
[1771160908590,3.30696807,88.004,87.949,10.59691237]
[1771160908889,3.30696807,88.003,87.949,10.59691237]
[1771160909086,3.30696807,88.002,87.949,10.59691237]
[1771160909287,3.30696807,88.001,87.949,10.59691237]
[1771160909488,3.30696807,88.0,87.949,10.59691237]
[1771160909689,3.30696807,87.999,87.951,10.59691237]
[1771160909884,3.30696807,87.998,87.951,10.59691237]
[1771160910084,3.30696807,87.997,87.951,10.59691237]
[1771160910292,3.397947,88.018,87.951,10.59691237]
[1771160910585,3.397947,88.016,87.952,10.2384]
[1771160910790,3.30696807,88.015,87.953,10.59691237]
[1771160911094,3.30696807,88.014,87.953,10.59691237]
[1771160911293,3.30696807,88.013,87.953,10.59691237]
[1771160911497,3.30696807,88.012,87.953,10.59691237]
[1771160911797,3.397947,88.016,87.953,10.59691237]
[1771160911798,3.30696807,88.011,87.953,10.59691237]
[1771160911994,3.30696807,88.01,87.953,10.59691237]
[1771160912187,3.30696807,88.009,87.953,10.59691237]
[1771160912391,3.30696807,88.008,87.953,10.59691237]
[1771160912586,3.30696807,88.007,87.953,10.59691237]
[1771160912795,3.30696807,88.006,87.953,10.59691237]
[1771160913095,3.30696807,88.005,87.953,10.59691237]
[1771160913296,3.30696807,88.004,87.953,10.59691237]
[1771160913498,3.30696807,88.003,87.953,10.59691237]
[1771160913696,3.30696807,88.002,87.953,10.59691237]
[1771160913895,3.30696807,88.001,87.954,10.2381]
[1771160914093,8.05286258,88.027,87.955,10.59691237]
[1771160914297,3.32150643,88.031,87.955,10.59691237]
[1771160914298,8.05286258,88.026,87.955,10.59691237]
[1771160914494,10.2297,88.027,87.966,10.59691237]
[1771160914898,6.62803119,88.026,87.966,10.59691237]
[1771160918402,6.62803119,88.026,87.968,10.2365]
[1771160918604,6.62803119,88.026,87.969,10.59691237]
[1771160919000,10.23,88.025,87.969,10.59691237]
[1771160919803,6.62803119,88.026,87.973,10.59691237]
[1771160920007,8.05286258,88.035,87.973,10.59691237]
[1771160920202,7.16024944,88.041,87.973,10.59691237]
[1771160921606,7.16024944,88.041,87.984,10.59691237]
[1771160922502,8.05286258,88.04,87.984,10.59691237]
[1771160922702,7.18046023,88.039,87.984,10.59691237]
[1771160924514,7.18046023,88.039,87.989,10.64403213]
[1771160926115,3.28956245,88.038,87.989,10.64403213]
[1771160926315,3.28956245,88.037,87.989,10.64403213]
[1771160926515,3.28956245,88.036,87.989,10.64403213]
[1771160926718,3.28956245,88.035,87.989,10.64403213]
[1771160926915,3.28956245,88.038,88.005,10.64403213]
[1771160927113,3.28956245,88.066,88.005,10.64403213]
[1771160927307,7.05623034,88.064,88.005,10.64403213]
[1771160927506,10.34579279,88.063,88.005,10.64403213]
[1771160927712,10.34579279,88.062,88.006,10.2321]
[1771160927912,3.28956245,88.061,88.007,10.64403213]
[1771160928113,3.28956245,88.06,88.007,10.64403213]
[1771160928313,3.28956245,88.059,88.007,10.64403213]
[1771160928518,3.28956245,88.058,88.007,10.64403213]
[1771160928716,3.28956245,88.057,88.007,10.64403213]
[1771160928916,3.28956245,88.056,88.007,10.64403213]
[1771160929117,3.28956245,88.055,88.007,10.64403213]
[1771160929317,3.28956245,88.054,88.011,10.64403213]
[1771160929613,7.03264775,88.071,87.957,20.4755]
[1771160929820,7.03264775,88.069,87.996,10.64403213]
[1771160930021,7.50147633,88.067,87.996,10.64403213]
[1771160930315,7.50147633,88.059,87.996,10.64403213]
[1771160930820,7.50147633,88.059,87.957,20.4755]
[1771160930821,7.50147633,88.059,88.006,10.64403213]
[1771160931720,3.28956245,88.058,88.006,10.64403213]
[1771160932017,7.54801014,88.046,87.986,10.64403213]
[1771160932220,7.54801014,88.044,87.986,10.64403213]
[1771160932422,7.54801014,88.042,87.986,10.64403213]
[1771160932721,7.54801014,88.039,87.986,10.64403213]
[1771160932920,7.54738386,88.037,87.986,10.64403213]
[1771160933116,7.54252447,88.035,87.986,10.64403213]
[1771160934615,3.28956245,88.048,87.989,10.64403213]
[1771160934819,3.28956245,88.047,87.989,10.64403213]
[1771160935017,7.64493793,88.045,87.989,10.64403213]
[1771160935221,8.05286258,88.062,87.989,10.64403213]
[1771160935222,7.64493793,88.043,87.989,10.64403213]
[1771160936125,3.28956245,88.042,87.989,10.64403213]
[1771160936326,3.28956245,88.041,87.989,10.64403213]
[1771160936627,3.28956245,88.04,87.989,10.64403213]
[1771160936825,3.28956245,88.039,87.991,10.64403213]
[1771160937022,3.28956245,88.038,87.991,10.64403213]
[1771160937220,3.28956245,88.051,87.991,10.64403213]
[1771160937418,3.28956245,88.051,87.934,193.3961]
[1771160937419,3.28956245,88.057,88.001,10.64403213]
[1771160937622,3.28956245,88.056,88.001,10.64403213]
[1771160937822,3.28956245,88.055,88.001,10.64403213]
[1771160938022,3.28956245,88.054,88.001,10.64403213]
[1771160938224,3.28956245,88.053,88.001,10.64403213]
[1771160938523,3.28956245,88.057,88.001,10.64403213]
[1771160938720,7.85000114,88.058,88.002,10.64403213]
[1771160939118,8.11204793,88.072,88.002,10.64403213]
[1771160939326,8.05286258,88.081,88.002,10.64403213]
[1771160939327,3.28956245,88.076,88.002,10.64403213]
[1771160939523,3.28956245,88.08,88.023,10.64403213]
[1771160939719,8.11204793,88.079,88.023,10.64403213]
[1771160939924,8.27560401,88.077,88.023,10.64403213]
[1771160941326,3.28956245,88.083,88.024,10.64403213]
[1771160941521,8.26596854,88.109,88.024,10.64403213]
[1771160941722,8.26596854,88.107,88.024,10.64403213]
[1771160941929,8.09602536,88.105,88.036,10.64403213]
[1771160942125,8.09164584,88.103,88.036,10.64403213]
[1771160942321,3.28657589,88.119,88.036,10.64403213]
[1771160942628,3.28657589,88.12,88.064,10.64403213]
[1771160943023,25.32688967,88.121,88.064,10.64403213]
[1771160945227,25.32688967,88.121,88.065,10.64403213]
[1771160945421,17.23524383,88.121,88.065,10.64403213]
[1771160945822,17.23524383,88.121,88.089,10.64403213]
[1771160946019,4.383e-05,88.121,88.089,10.64403213]
[1771160946523,4.383e-05,88.121,88.111,10.64403213]
[1771160946724,8.30023009,88.218,88.111,10.64403213]
[1771160947124,8.30023009,88.218,88.15,10.64403213]
[1771160947324,8.30023009,88.218,88.133,10.64403213]
[1771160947628,8.01356951,88.249,88.03,180.33238921]
[1771160947629,8.29541064,88.216,88.134,10.64403213]
[1771160947931,8.33068822,88.215,88.134,10.64403213]
[1771160948328,8.33068822,88.215,88.144,10.64403213]
[1771160948926,8.33068822,88.215,88.124,10.64403213]
[1771160949925,7.5860161,88.213,88.124,10.64403213]
[1771160950123,7.5860161,88.208,88.106,10.64403213]
[1771160950327,7.5860161,88.206,88.107,10.2204]
[1771160950528,7.5860161,88.204,88.108,10.64403213]
[1771160950723,7.5860161,88.203,88.108,10.64403213]
[1771160951026,7.5860161,88.203,88.121,10.64403213]
[1771160952030,7.5860161,88.203,88.125,10.64403213]
[1771160952736,7.73322148,88.197,88.125,10.64403213]
[1771160953437,7.69522105,88.191,88.107,10.89121631]
[1771160953635,7.69522105,88.187,88.107,10.89121631]
[1771160953838,7.656233,88.177,88.035,10.89121631]
[1771160954033,7.65246919,88.167,88.078,10.89121631]
[1771160954936,7.64822727,88.161,88.007,10.89121631]
[1771160955238,7.64822727,88.147,88.012,10.89121631]
[1771160955435,7.64822727,88.147,88.065,10.89121631]
[1771160955932,7.64822727,88.147,88.069,10.89121631]
[1771160956837,7.64822727,88.147,88.09,10.89121631]
[1771160957135,7.57696827,88.171,88.09,10.89121631]
[1771160957328,7.57696827,88.191,88.09,10.89121631]
[1771160957833,7.57696827,88.191,88.131,10.89121631]
[1771160958429,7.59298819,88.213,88.133,10.89121631]
[1771160959832,7.59298819,88.213,88.144,10.89121631]
[1771160960532,7.59298819,88.213,88.146,10.89121631]
[1771160961540,7.59298819,88.213,88.148,10.89121631]
[1771160961740,532.15156486,88.232,88.148,10.89121631]
[1771160961741,449.70479149,88.232,88.148,10.89121631]
[1771160962040,449.70479149,88.232,88.153,10.89121631]
[1771160962337,8.09146752,88.231,88.153,10.89121631]
[1771160963736,8.09146752,88.231,88.155,10.2148]
[1771160963941,8.09146752,88.231,88.156,10.89121631]
[1771160965143,8.09146752,88.231,88.16,10.89121631]
[1771160965441,10.23316409,88.283,88.16,10.89121631]
[1771160965442,8.20600889,88.249,88.16,10.89121631]
[1771160965845,7.99022574,88.265,88.185,10.89121631]
[1771160966337,7.98694916,88.247,88.111,20.4399]
[1771160966543,7.98694916,88.247,88.113,10.89121631]
[1771160967040,7.98320044,88.219,88.145,10.89121631]
[1771160967637,7.98320044,88.26,88.156,10.89121631]
[1771160968235,7.77092375,88.238,88.161,10.89121631]
[1771160969043,17.97269047,88.237,88.161,10.89121631]
[1771160969847,7.76729047,88.237,88.161,10.89121631]
[1771160971546,7.76729047,88.237,88.171,10.89121631]
[1771160972242,34.1,88.246,88.11,20.4401]
[1771160972444,8.23007034,88.235,88.124,10.89121631]
[1771160972846,8.23007034,88.226,88.144,10.89121631]
[1771160973947,8.22653647,88.219,88.147,10.89121631]
[1771160975149,8.22653647,88.219,88.149,10.2154]
[1771160975346,8.22653647,88.219,88.149,21.10661631]
[1771160975647,8.22653647,88.219,88.15,10.89121631]
[1771160975842,8.22653647,88.219,88.152,10.2151]
[1771160976048,8.22653647,88.219,88.153,10.89121631]
[1771160976650,8.22653647,88.219,88.157,10.89121631]
[1771160978853,8.26316378,88.216,88.157,10.89121631]
[1771160979149,8.26316378,88.216,88.14,10.89121631]
[1771160979349,8.25985972,88.202,88.122,10.89121631]
[1771160980350,34.1,88.213,88.122,10.89121631]
[1771160980351,8.23195362,88.184,88.122,10.89121631]
[1771160981045,8.23195362,88.184,88.123,10.2185]
[1771160981252,8.23195362,88.184,88.124,10.89121631]
[1771160982149,8.23195362,88.184,88.083,34.1]
[1771160982150,8.23195362,88.184,88.128,10.89121631]
[1771160982453,8.36501591,88.201,88.128,10.89121631]
[1771160983354,8.36501591,88.201,88.142,10.93453666]
[1771160983853,8.34852001,88.199,88.087,10.93453666]
[1771160984158,8.37976645,88.197,88.087,10.93453666]
[1771160984454,8.37976645,88.195,88.087,10.93453666]
[1771160984647,8.37976645,88.193,88.087,10.93453666]
[1771160984847,8.37976645,88.19,88.12,10.93453666]
[1771160985048,8.37673753,88.188,88.12,10.93453666]
[1771160985248,8.37673753,88.187,88.12,10.93453666]
[1771160986163,11.67886274,88.186,88.12,10.93453666]
[1771160986362,3.27461034,88.185,88.129,10.2178]
[1771160986562,3.27461034,88.184,88.129,10.2178]
[1771160986762,3.27461034,88.185,88.13,10.93453666]
[1771160987065,3.27461034,88.184,88.13,10.93453666]
[1771160987259,3.27461034,88.183,88.13,10.93453666]
[1771160987465,3.27461034,88.182,88.13,10.93453666]
[1771160987664,3.27461034,88.181,88.13,10.93453666]
[1771160987965,3.27461034,88.18,88.13,10.93453666]
[1771160988261,3.27461034,88.179,88.13,10.93453666]
[1771160988461,3.27461034,88.178,88.13,10.93453666]
[1771160988661,3.27461034,88.177,88.13,10.93453666]
[1771160988863,3.27461034,88.176,88.13,10.93453666]
[1771160989063,3.27461034,88.175,88.132,10.93453666]
[1771160989260,3.27461034,88.174,88.132,10.93453666]
[1771160989465,8.37364491,88.206,88.132,10.93453666]
[1771160989764,8.37364491,88.203,88.132,10.93453666]
[1771160989964,8.44628804,88.201,88.132,10.93453666]
[1771160990265,8.44386223,88.199,88.132,10.93453666]
[1771160990459,8.44386223,88.192,88.132,10.93453666]
[1771160990657,8.44386223,88.192,88.122,10.2186]
[1771160990862,8.44386223,88.192,88.069,34.1]
[1771160990863,42.07896164,88.191,88.06,20.4518]
[1771160991063,8.44102726,88.182,88.083,10.93453666]
[1771160991364,8.44102726,88.177,88.106,10.93453666]
[1771160992757,10.2124,88.176,88.11,10.93453666]
[1771160993365,8.44102726,88.177,88.114,10.93453666]
[1771160994568,8.72311363,88.176,88.114,10.93453666]
[1771160995656,8.72037654,88.165,88.097,10.93453666]
[1771160996269,8.72952871,88.153,88.097,10.93453666]
[1771160996962,10.2161,88.145,88.097,10.93453666]
[1771161000860,7.97896164,88.167,88.097,10.93453666]
[1771161001061,7.97896164,88.186,88.097,10.93453666]
[1771161001269,10.23316409,88.209,88.1,34.1]
[1771161001568,3.30968567,88.208,88.112,10.93453666]
[1771161001763,3.30968567,88.207,88.112,10.93453666]
[1771161001966,3.30968567,88.206,88.157,10.93453666]
[1771161002266,8.04229897,88.251,88.157,10.93453666]
[1771161002470,9.11170608,88.26,88.157,10.93453666]
[1771161002676,10.2034,88.254,88.191,10.93453666]
[1771161003169,10.2017,88.27,88.199,10.93453666]
[1771161004768,10.2017,88.27,88.204,10.93453666]
[1771161005772,10.2017,88.27,88.206,10.2089]
[1771161005968,10.2017,88.27,88.207,10.93453666]
[1771161006267,8.04229897,88.276,88.207,10.93453666]
[1771161006472,10.2028,88.259,88.207,10.93453666]
[1771161008075,10.8694411,88.27,88.207,10.93453666]
[1771161008977,10.8694411,88.287,88.208,10.93453666]
[1771161009774,10.8694411,88.287,88.21,10.93453666]
[1771161010479,10.8694411,88.305,88.228,10.93453666]
[1771161011474,10.8694411,88.305,88.221,10.2072]
[1771161011782,10.8694411,88.305,88.222,10.93453666]
[1771161012977,10.8694411,88.305,88.204,10.93453666]
[1771161013177,10.71113395,88.304,88.204,10.93453666]
[1771161013383,10.71113395,88.302,88.204,10.93453666]
[1771161013580,10.71113395,88.3,88.204,10.93453666]
[1771161013780,10.71113395,88.299,88.204,10.93453666]
[1771161013984,10.71113395,88.293,88.204,10.93453666]
[1771161014184,10.71113395,88.291,88.194,10.2103]
[1771161014381,10.71113395,88.288,88.185,10.99565794]
[1771161014582,10.71113395,88.281,88.185,10.99565794]
[1771161014782,10.23316409,88.278,88.185,10.99565794]
[1771161014983,8.01542158,88.286,88.185,10.99565794]
[1771161014984,10.71113395,88.274,88.185,10.99565794]
[1771161015183,10.71113395,88.272,88.185,10.99565794]
[1771161015380,3.25689985,88.273,88.185,10.99565794]
[1771161015381,10.71113395,88.27,88.185,10.99565794]
[1771161015687,10.71113395,88.267,88.167,10.99565794]
[1771161015982,10.71113395,88.265,88.167,10.99565794]
[1771161016184,10.71113395,88.258,88.149,10.99565794]
[1771161016481,10.71113395,88.251,88.149,10.99565794]
[1771161016684,10.71113395,88.251,88.167,10.99565794]
[1771161017078,10.71113395,88.269,88.167,10.99565794]
[1771161017375,10.71113395,88.269,88.131,34.1]
[1771161017376,10.71113395,88.268,88.188,10.99565794]
[1771161017576,10.71113395,88.268,88.17,10.99565794]
[1771161017577,10.71113395,88.26,88.17,10.99565794]
[1771161017887,10.71113395,88.259,88.17,10.99565794]
[1771161018379,3.25689985,88.268,88.17,10.99565794]
[1771161018579,10.71113395,88.278,88.17,10.99565794]
[1771161018783,10.71113395,88.278,88.197,10.99565794]
[1771161019982,10.71113395,88.27,88.138,10.99565794]
[1771161020285,10.71113395,88.268,88.138,10.99565794]
[1771161020491,10.71113395,88.267,88.138,10.99565794]
[1771161021285,10.71113395,88.267,88.137,20.4338]
[1771161021286,10.71113395,88.267,88.175,10.99565794]
[1771161022078,10.71113395,88.266,88.175,10.99565794]
[1771161022679,10.71113395,88.257,88.175,10.99565794]
[1771161022879,10.71113395,88.256,88.175,10.99565794]
[1771161023087,10.71113395,88.247,88.156,10.99565794]
[1771161023385,10.71113395,88.246,88.164,10.99565794]
[1771161024390,10.71113395,88.237,88.164,10.99565794]
[1771161025976,10.71113395,88.234,88.143,10.99565794]
[1771161027885,10.71113395,88.231,88.147,10.99565794]
[1771161029790,10.2063,88.229,88.147,10.99565794]
[1771161030088,10.71113395,88.228,88.147,10.99565794]
[1771161030285,10.71113395,88.226,88.152,10.99565794]
[1771161030981,10.71113395,88.226,88.106,10.99565794]
[1771161031182,34.1,88.228,88.106,10.99565794]
[1771161031183,10.71113395,88.204,88.106,10.99565794]
[1771161032091,10.71113395,88.202,88.136,10.99565794]
[1771161033391,10.71113395,88.202,88.138,10.99565794]
[1771161035194,10.71113395,88.202,88.143,10.99565794]
[1771161035582,10.2084,88.211,88.143,10.99565794]
[1771161036087,10.71113395,88.192,88.121,10.99565794]
[1771161036886,10.71113395,88.187,88.127,10.218]
[1771161037084,10.71113395,88.187,88.105,172.50439473]
[1771161037085,10.71113395,88.187,88.128,10.99565794]
[1771161037494,10.71113395,88.213,88.128,10.99565794]
[1771161038793,10.71113395,88.213,88.133,10.99565794]
[1771161038794,10.21,88.197,88.133,10.99565794]
[1771161040294,10.21,88.197,88.135,10.99565794]
[1771161042202,10.71113395,88.196,88.135,10.99565794]
[1771161044301,10.65752704,88.194,88.135,10.99565794]
[1771161047992,3.25689985,88.202,88.142,11.03624434]
[1771161048295,3.25689985,88.209,88.142,11.03624434]
[1771161048500,197.92,88.239,88.142,11.03624434]
[1771161048501,10.65752704,88.207,88.142,11.03624434]
[1771161048695,10.65752704,88.198,88.142,11.03624434]
[1771161049304,10.65752704,88.197,88.142,11.03624434]
[1771161049504,10.65752704,88.193,88.142,11.03624434]
[1771161050304,10.65752704,88.188,88.121,11.03624434]
[1771161050700,10.65752704,88.186,88.121,11.03624434]
[1771161050900,10.65752704,88.184,88.121,11.03624434]
[1771161051101,10.65752704,88.182,88.121,11.03624434]
[1771161051309,10.2121,88.18,88.121,11.03624434]
[1771161051509,10.65752704,88.179,88.121,11.03624434]
[1771161051809,10.65752704,88.155,88.105,172.50439473]
[1771161052001,10.65752704,88.155,88.088,11.03624434]
[1771161052403,10.65752704,88.152,88.088,11.03624434]
[1771161052805,10.65752704,88.166,88.088,11.03624434]
[1771161053008,20.87342704,88.146,88.088,11.03624434]
[1771161053208,10.65752704,88.145,88.088,11.03624434]
[1771161053413,10.2169,88.137,88.088,11.03624434]
[1771161053710,10.65752704,88.136,88.061,11.03624434]
[1771161054810,10.65752704,88.136,88.064,11.03624434]
[1771161055710,10.65752704,88.136,88.065,10.2252]
[1771161055904,10.65752704,88.136,88.066,11.03624434]
[1771161056100,10.2156,88.149,88.066,11.03624434]
[1771161056710,10.65752704,88.145,88.078,11.03624434]
[1771161057302,10.2163,88.143,88.078,11.03624434]
[1771161057508,10.65752704,88.142,88.078,11.03624434]
[1771161058811,10.217,88.137,88.078,11.03624434]
[1771161059114,20.87452704,88.137,88.078,11.03624434]
[1771161059509,240.73700001,88.237,88.078,11.03624434]
[1771161059510,10.65752704,88.134,88.078,11.03624434]
[1771161063614,7.9800878,88.147,88.078,11.03624434]
[1771161063615,3.26622737,88.147,88.078,11.03624434]
[1771161063916,10.2152,88.152,88.078,11.03624434]
[1771161063917,10.65752704,88.149,88.078,11.03624434]
[1771161064215,10.65752704,88.147,88.078,11.03624434]
[1771161064416,10.65752704,88.145,88.078,11.03624434]
[1771161064612,10.65752704,88.144,88.078,11.03624434]
[1771161066416,10.65752704,88.144,88.079,10.2236]
[1771161066711,10.65752704,88.144,88.08,11.03624434]
[1771161066915,10.65752704,88.16,88.08,11.03624434]
[1771161067508,10.65752704,88.157,88.071,11.03624434]
[1771161067819,10.65752704,88.155,88.071,11.03624434]
[1771161068116,10.65752704,88.143,88.071,11.03624434]
[1771161068908,10.65752704,88.135,88.071,11.03624434]
[1771161069820,10.65752704,88.133,88.043,11.03624434]
[1771161070019,10.65752704,88.112,88.043,11.03624434]
[1771161070711,20.87832704,88.105,88.043,11.03624434]